Cogmind - Beta 14 @@@ ROGUE MODE // 2024.08.07 @ 16:05:50 Player: gigi283 Result: Destroyed by G-34 Mercenary with Small Laser Performance ------------- Evolutions (0) 0 Regions Visited (2) 400 Robots Destroyed (34) 170 Value Destroyed (756) 756 Prototype IDs (0) 0 Alien Tech Used (0) 0 Bonus (0) 0 TOTAL SCORE: 1326 Bonus ------- None Cogmind --------- Core Integrity 0/250 Matter 298/300 Energy 152/160 System Corruption 0% Temperature Cool (37) Movement Walking (120) Location -10/Mines Parts ------- > --- POWER (1) -------- Light Nuclear Core > --- PROPULSION (2) --- Aluminum Leg Carbon-fiber Leg > --- UTILITY (2) ------ Improved Heat Sink Medium Storage Unit > --- WEAPON (2) ------- Beamcaster Light Assault Rifle > --- INVENTORY (10) --- Light Treads Improved Heat Sink Large Storage Unit Large Matter Pod (150) Transport Network Coupler Bomb Drone Bay Mining Laser Peak State ------------ > --- POWER ------------ Light Nuclear Core > --- PROPULSION ------- Carbon-fiber Leg Makeshift Leg > --- UTILITY ---------- Improved Heat Sink Medium Storage Unit > --- WEAPON ----------- Beamcaster Light Assault Rifle > --- INVENTORY -------- Light Nuclear Core Light Treads Aluminum Leg Improved Heat Sink Large Storage Unit Large Matter Pod Transport Network Coupler Bomb Drone Bay Mining Laser [Rating: 22] Favorites ----------- Power Light Nuclear Core Engine Ion Engine Power Core Light Nuclear Core Propulsion Aluminum Leg Leg Aluminum Leg Utility Medium Storage Unit Device Improved Heat Sink Storage Medium Storage Unit Weapon Light Assault Rifle Energy Gun Medium Laser Ballistic Gun Light Assault Rifle Build | -11 -10 -10 ------- Run | Yrd Mat Min Slots Evolved . | . . . Power . | . . . Propulsion . | . . . Utility . | . . . Weapon . | . . . Parts Attached 39 | 6 10 23 Power 5 | 1 2 2 Engine 2 | 1 1 . Core 3 | . 1 2 Reactor . | . . . Propulsion 15 | 2 2 11 Treads . | . . . Leg 15 | 2 2 11 Wheel . | . . . Hover . | . . . Flight . | . . . Utility 10 | 1 3 6 Device 6 | . 2 4 Storage 4 | 1 1 2 Processor . | . . . Hackware . | . . . Protection . | . . . Artifact . | . . . Weapon 9 | 2 3 4 Energy Gun 4 | . 2 2 Energy Cannon . | . . . Ballistic Gun 5 | 2 1 2 Ballistic Cannon . | . . . Launcher . | . . . Special Weapon . | . . . Impact Weapon . | . . . Slashing Weapon . | . . . Piercing Weapon . | . . . Special Melee Weapon . | . . . Unidentified Prototypes . | . . . Parts Lost 7 | . 2 5 Power . | . . . Propulsion 3 | . 1 2 Utility 2 | . 1 1 Weapon 2 | . . 2 Highest Loss Streak 2 | . 2 2 To Critical Strikes . | . . . Average Slot Usage (%) 97 | . 94 98 Engine 1 | . 4 . Core 12 | . 9 14 Leg 27 | . 27 27 Device 12 | . 9 13 Storage 14 | . 14 14 Energy Gun 12 | . 10 13 Ballistic Gun 15 | . 17 14 Peak Build Rating 22 | 6 10 22 Average Rating 11 | 3 8 13 On Entrance 5 | . 6 10 Naked Turns . | . . . Heaviest Build 22 | 12 19 22 Greatest Support 35 | 20 20 35 Greatest Overweight (x) 1 | . . 1 Average Overweight (x) . | . . . Largest Inventory Capacity 15 | 8 10 15 Average Capacity 9 | 5 9 10 Most Carried 11 | 5 10 11 Average Carried 8 | 2 6 9 Final Capacity 10 | 8 10 10 Final Carried 10 | 3 10 8 Class Distribution -------------------- 54% | Scavenger-Mutant 45% | Mutant Dominant Class ---------------- Mutant | -10/Materials Scavenger-Mutant | -10/Mines Resources | -11 -10 -10 ----------- Run | Yrd Mat Min Matter Collected 868 | 216 232 420 Remotely . | . . . Salvage Created 1031 | . 515 516 Parts 67 | . 38 29 Haulers Intercepted 2 | . 2 . Recyclers Shooed . | . . . Parts Field Recycled . | . . . Retrieved Matter . | . . . Parts Self-Destructed . | . . . Prevented . | . . . Kills | -11 -10 -10 ------- Run | Yrd Mat Min Combat Hostiles Destroyed 29 | . 14 15 Guns 28 | . 14 14 Classes Destroyed 4 | . 4 . Hauler 2 | . 2 . Watcher 3 | . 3 . Swarmer 15 | . 9 6 Grunt 14 | . 5 9 Best Kill Streak 4 | . 4 3 Combat Bots Only 4 | . 4 3 Max Kills in Single Turn 1 | . 1 1 Gunslinging . | . . . Exploded . | . . . Melee . | . . . Uniques/NPCs Destroyed . | . . . Combat | -11 -10 -10 -------- Run | Yrd Mat Min Hostile Shots Fired 181 | . 66 115 Missed 46 | . 13 33 Damage Taken 1549 | . 546 1003 Core 259 | . 106 153 Absorbed by Shields . | . . . Regen/Repaired (Parts) 55 | . 55 . Core Remaining (%) 100 | 100 . . Volleys Fired 128 | . 64 64 Largest 2 | . 2 2 Hottest 95 | . 70 95 Shots Fired 248 | . 128 120 Gun 248 | . 128 120 Cannon . | . . . Launcher . | . . . Special . | . . . Kinetic 162 | . 98 64 Thermal 86 | . 30 56 Explosive . | . . . Electromagnetic . | . . . Robot Hit Streak 13 | . 13 12 Robot Miss Streak 3 | . 3 3 Penetration Max . | . . . Secondary Targets 5 | . 4 1 Max Gunslinging Chain 1 | . 1 1 Shots Hit Robots 162 | . 79 83 Core Hits 64 | . 35 29 Critical Kills . | . . . Critical Parts Destroyed . | . . . Critical Strikes 4 | . 2 2 Burn 4 | . 2 2 Melee Attacks . | . . . Impact . | . . . Slashing . | . . . Piercing . | . . . Sneak Attacks . | . . . Combat Hostiles . | . . . Follow-up Attacks . | . . . Damage Inflicted 1628 | . 754 874 Guns 1618 | . 754 864 Cannons . | . . . Explosions . | . . . Melee . | . . . Ramming 10 | . . 10 Kinetic 859 | . 491 368 Thermal 759 | . 263 496 Explosive . | . . . Electromagnetic . | . . . Impact . | . . . Slashing . | . . . Piercing . | . . . Highest Corruption . | . . . Average Corruption . | . . . Corruption Purged . | . . . Corruption Blocked . | . . . Overload Shots . | . . . Overflow Damage . | . . . Projectiles . | . . . Explosions . | . . . Melee . | . . . Knockbacks . | . . . Impact . | . . . Kinetic . | . . . Secondary . | . . . Self-Inflicted Damage . | . . . Shots . | . . . Rammed . | . . . Targets Rammed 3 | . . 3 Kicked 3 | . . 3 Crushed . | . . . Highest Temperature 188 | . 164 188 Average Temperature 42 | . 61 26 Received Heat Transfer 711 | . 183 528 Siege Activations . | . . . Robots Corrupted . | . . . Combat Hostiles . | . . . Parts Fried . | . . . Impact Corruptions . | . . . Robots Melted 1 | . . 1 Combat Hostiles 1 | . . 1 Parts Melted 6 | . 2 4 Heat Transferred 2516 | . 925 1591 Parts Sabotaged . | . . . Parts Stolen . | . . . Parts Stripped . | . . . Power Chain Reactions . | . . . Alert | -11 -10 -10 ------- Run | Yrd Mat Min Peak Influence 179 | . 150 179 Initial 30 | . . 30 Average 49 | . 50 50 Maximum Alert Level . | . . . Low Security (%) 100 | 100 100 100 Level 1 . | . . . Level 2 . | . . . Level 3 . | . . . Level 4 . | . . . Level 5 . | . . . High Security . | . . . Max Security . | . . . Squads Dispatched 3 | . 3 . Investigation 2 | . 2 . Extermination . | . . . Reinforcement 1 | . 1 . Assault . | . . . Garrison . | . . . Intercept . | . . . Searches Triggered . | . . . Construction Impeded . | . . . Haulers Reinforced . | . . . Active Scanning Responses . | . . . Cargo Convoy Interrupts . | . . . Stealth | -11 -10 -10 --------- Run | Yrd Mat Min Distress Signals 3 | . 2 1 Communications Jammed . | . . . Distress Signals . | . . . Times Spotted 41 | . 21 20 Peak Tracking Total 4 | . 4 3 Tactical Retreats 2 | . . 2 Traps | -11 -10 -10 ------- Run | Yrd Mat Min Traps Triggered 1 | . 1 . Indirectly . | . . . Trap Hack Attempts . | . . . Triggered . | . . . Disarmed . | . . . Reprogrammed . | . . . Reused . | . . . Traps Extracted . | . . . Installed . | . . . Triggered 1 | . . 1 Machines | -11 -10 -10 ---------- Run | Yrd Mat Min Machines Disabled . | . . . Max in Single Turn . | . . . Machines Repaired . | . . . Machines Dismantled . | . . . Machines Sabotaged . | . . . Overloaded Fab Kills . | . . . Hacking | -11 -10 -10 --------- Run | Yrd Mat Min Machines Accessed 7 | . 6 1 Terminals 5 | . 5 . Fabricators . | . . . Repair Stations 1 | . 1 . Recycling Units . | . . . Scanalyzers . | . . . Garrison Access . | . . . Total Hacks 12 | . 11 1 Successful 7 | . 6 1 Failed 5 | . 5 . Catastrophic . | . . . Database Lockouts . | . . . Manual 6 | . 6 . Terminals 9 | . 9 . Fabricators . | . . . Repair Stations 2 | . 2 . Recycling Units . | . . . Scanalyzers . | . . . Garrison Access . | . . . Terminal Hacks 2 | . 1 1 Record 1 | . 1 . Open Door 1 | . . 1 Fabricator Hacks . | . . . Repair Station Hacks 2 | . 2 . Scan Component 1 | . 1 . Repair 1 | . 1 . Recycling Unit Hacks . | . . . Scanalyzer . | . . . Garrison Access Hacks . | . . . Unauthorized Hacks 3 | . 3 . Terminals 3 | . 3 . Botnet 3 | . 3 . Fabricators . | . . . Repair Stations . | . . . Recycling Units . | . . . Scanalyzers . | . . . Garrison Access . | . . . Data Cores Recovered . | . . . Used . | . . . Hacking Detections 4 | . 4 . Full Trace Events 1 | . 1 . Feedback Events . | . . . Feedback Blocked . | . . . Robot Schematics Acquired . | . . . Robots Built . | . . . Authchips . | . . . Time . | . . . Total Robot Build Rating . | . . . Part Schematics Acquired . | . . . Parts Built . | . . . Authchips . | . . . Time . | . . . Total Part Build Rating . | . . . Parts Repaired 1 | . 1 . Time 26 | . 26 . Parts Recycled . | . . . Recycled Matter . | . . . Retrieved Matter . | . . . Retrieved Components . | . . . Parts Scanalyzed . | . . . Part Schematics Acquired . | . . . Parts Damaged . | . . . Bothacking | -11 -10 -10 ------------ Run | Yrd Mat Min Used RIF Installer . | . . . Robots Hacked . | . . . Non-combat . | . . . Combat . | . . . Robot Hacks Applied . | . . . Relay Couplers Released . | . . . Fabnet Peak Effective % . | . . . Robots Rewired . | . . . Allies Hacked . | . . . Hacks Repelled . | . . . Allies | -11 -10 -10 -------- Run | Yrd Mat Min Total Allies 2 | . . 2 Largest Group 2 | . . 2 Highest-Rated Group 58 | . . 58 Highest-Rated Ally 31 | . . 31 Total Orders . | . . . Ally Attacks 3 | . . 3 Total Damage 21 | . . 21 Kills . | . . . Allies Corrupted . | . . . Allies Melted . | . . . Intel | -11 -10 -10 ------- Run | Yrd Mat Min Robot Analysis Total . | . . . Derelict Logs Recovered 1 | . . 1 Drone Launches . | . . . Drone Recoveries . | . . . Exploration | -11 -10 -10 ------------- Run | Yrd Mat Min Turns Passed 2960 | 79 1100 1781 Spaces Moved 1829 | 59 613 1157 Core 17 | 17 . . Treads . | . . . Legs 1812 | 42 613 1157 Wheels . | . . . Hover . | . . . Flight . | . . . Fastest Speed 50 | 50 120 120 Average Speed 121 | 99 120 122 Slowest Speed 190 | 120 120 190 Overloaded Moves . | . . . Propulsion Burnouts . | . . . Robots Hopped . | . . . Cave-ins Triggered . | . . . Exploration Rate (%) 53 | 5 65 91 Regions Visited 2 Branch Regions 1 Pre-discovered Areas . | . . . Known Exits Taken . | . . . Unknown Exits Taken 2 | 1 1 . Scrap Searched 2 | . . 2 Spaces Dug . | . . . Terrain Destroyed . | . . . Melee . | . . . Projectile . | . . . AOE . | . . . Terrain Rammed . | . . . Walls Destroyed . | . . . Machines Disabled . | . . . Actions | -11 -10 -10 --------- Run | Yrd Mat Min Total 2367 | 79 869 1419 Wait 309 | 6 160 143 Move 1827 | 58 612 1157 Hop . | . . . Pick Up 34 | 9 17 8 Fast Attach 1 | . . 1 Attach 15 | 6 5 4 Detach . | . . . Swap 23 | . 5 18 Drop 27 | . 6 21 Fire 128 | . 64 64 Melee . | . . . Ram . | . . . Kick 3 | . . 3 Crush . | . . . Escape Stasis . | . . . Rewire . | . . . Trap . | . . . Miscellaneous . | . . . Route ------- -11/Scrapyard -10/Materials (discovered 3 exits: [*Mat x2] / *Min) -10/Mines (discovered 3 exits: [*Mat x2] / [*Sub]) History --------- Turn | Location | Event 13 | -11/Scrapyard | Discovered new exit (range 15) 80 | -11/Scrapyard | Entered Materials 170 | -10/Materials | Discovered new exit (range 10) 300 | -10/Materials | Build established: Mutant 485 | -10/Materials | Repaired Aluminum Leg 605 | -10/Materials | Discovered new exit (range 8) 946 | -10/Materials | Discovered new exit (range 8) 1180 | -10/Materials | Entered Mines 1221 | -10/Mines | Discovered new exit (range 14) 1362 | -10/Mines | Found the Drone Emporium 1370 | -10/Mines | Found Prototype Device 1534 | -10/Mines | Core integrity fell below 50% 1674 | -10/Mines | Build established: Scavenger-Mutant 1796 | -10/Mines | Learned Materials terminal intel 2324 | -10/Mines | Discovered new exit (range 12) 2815 | -10/Mines | Core integrity fell below 20% 2909 | -10/Mines | Discovered new exit (range 11) 2961 | -10/Mines | Destroyed by G-34 Mercenary with Small Laser Last Messages --------------- 02825_ G-34 Mercenary destroyed. 02835_ Med. Laser destroyed. 02847_ G-47 Trooper destroyed. 02849_ Acquired 24 matter. 02854_ Dropped Aluminum Leg. 02855_ Acquired 10 matter. 02860_ Dropped Aluminum Leg. 02863_ Dropped Imp. Heat Sink. 02876_ Acquired 20 matter. 02879_ Dropped Aluminum Leg. 02880_ Acquired 10 matter. 02883_ Dropped Imp. Heat Sink. 02885_ Acquired 10 matter. 02887_ Acquired Beamcaster. 02889_ Acquired 10 matter. 02909_ EXIT=FOUND 02928_ Mak. Leg destroyed. 02928_ Critical hit (Burn: +37). 02940_ Acquired 10 matter. 02942_ Dropped Lgt. Nuclear Core. Map ----- +----------------------------------------------------+ | ?????## #?#% = #?????#=## ####### | | ??????# ###### ########=##=###???# | | ??????## ##### !!%*[* #???## | | ???????# #### ########%#????# | | ???????# #?# #??????#%#??### | | ??????# #?# #??????#%#### | | ??????# ## #?# ##??####% | | ??????# ######### ### ### ###### | | ??????##????????# ## #???# | | ???????????###### ## #???## | | ???????????# !% ## #????## | | ???????????# ##### ### #?????## | | ???????????# #???###?# ##??????? | | ??????###### #???????# #######???????? | | ??????# #???????####?????????????? | | ??????# #####????????????????????????? | | ??????# #????????????????????????????? | | ??????# #????????????????????????????? | | ??????# #??####??????????????????????? | | ??????# #?## #??????????????????????? | | ??????# ### #??????????????????????? | | ??????# ## #??????????????????????? | | ??????# #######????????????????? | | ??????# #????????????????? | | ??????# ##### #????????????????? | | ??????# ###@#???# #????????????????? | | ??????## ####g#???# #????????????????? | | ???????#### g#???# #????####????????? | | ?????###### ####???# #???## ##???????? | | ?????#%=* #??????# #???# #????#### | | ?????#%######??????# #??## #???## | | ?????#=#???????????# #?## #???# | | ?????#!#???????????# ### #???# | | ????## #?#######???# % #???# | | ???## #?# #???##### ##??## | | ??## #?# """ #???????## ##??## | | ??# ### """ #????????##[ ##?## | | ??# ! "" #????????##%= #?# | | ??# ##%= #???###### = #?# ## | | ??# ## #??## [% ### ##? | | ??# #########??# ##?? | | ??# ###??????????# #??? | | ??# #????????????# ###### ##??? | | ??# #????????????# #####????###???? | | ??# #????????????# ##??????????????? | | ??# #####????????# % #???????????????? | | ??# #????????# ##??????????####?? | | ??# ??# #??????????? ??? | | ??#### ## < #?# ######????? #???? | | ?????? #????? #?# !!! ###### ####? | +----------------------------------------------------+ Best States ------------- Heat Dissipation 39 Energy Generation 14 Energy Capacity 250 Matter Stores 300 Matter Capacity 300 Sight Range 16 Robot Scan Range 14 Terrain Scan Density 10 Evasion (%) 55 Item Schematics ----------------- None Robot Schematics ------------------ None Fabricated ------------ Nothing Alien Tech Used ----------------- None Achievements -------------- None Challenges ------------ None Game ------ Seed AlphaImprinterReplicator Manual? 0 Play Time 00:29:54 Cumulative 36.1 hours Start 2024.08.07 @ 15:34:58 End 2024.08.07 @ 16:05:50 Sessions 1 Manual Loads 0 Difficulty Rogue Special Mode None Game No. 54 Rogue 54 Adventurer 0 Explorer 0 Win Type - Total 0 Types 0/0/0/0/0/0/0/0/0 Lore% 12 Gallery% 26 Achievement% 23 Wizard Run 0 Options --------- Layout 1 ASCII 0 Keyboard 0 Movement Arrows Keybinds 0 Fullscreen 1 Font 16/SmallcapsGlow Map View 50x40 Zoom Use 0% Tactical HUD 1 Map Filters NONE Filters NONE Steam SD RUN: cd9eaf92-b5f1-4e88-8e14-1815531a1c2e